[Event "*** Titled Tuesday Blitz"]
[Site "Chess.com"]
[Date "2020.05.05"]
[Round "1"]
[White "MartinMatthiesen"]
[Black "Bigfish1995"]
[Result "0-1"]
[WhiteElo "2471"]
[BlackElo "3113"]
[TimeControl "180+1"]
[EndTime "10:04:25 PDT"]
[Termination "Bigfish1995 won by resignation"]

1. d4 {[%clk 0:02:59.7]} 1... Nf6 {[%clk 0:02:59.3]} 2. c4 {[%clk 0:02:59.3]}
2... e6 {[%clk 0:03:00]} 3. Nf3 {[%clk 0:02:58.7]} 3... b6 {[%clk 0:03:00.6]} 4.
g3 {[%clk 0:02:58.2]} 4... Bb7 {[%clk 0:03:01]} 5. Bg2 {[%clk 0:02:57.2]} 5...
Be7 {[%clk 0:03:01.7]} 6. O-O {[%clk 0:02:57.1]} 6... O-O {[%clk 0:03:02.3]} 7.
Nc3 {[%clk 0:02:57.1]} 7... Ne4 {[%clk 0:03:01.9]} 8. Nxe4 {[%clk 0:02:57]} 8...
Bxe4 {[%clk 0:03:01.6]} 9. Nh4 {[%clk 0:02:57.1]} 9... Bxg2 {[%clk 0:03:00.9]}
10. Nxg2 {[%clk 0:02:58]} 10... d5 {[%clk 0:03:00.2]} 11. Qa4 {[%clk 0:02:57.9]}
11... Qd7 {[%clk 0:02:58.5]} 12. Qxd7 {[%clk 0:02:55.8]} 12... Nxd7 {[%clk
0:02:59.4]} 13. cxd5 {[%clk 0:02:51.5]} 13... exd5 {[%clk 0:03:00.3]} 14. Nf4
{[%clk 0:02:42.1]} 14... c6 {[%clk 0:03:00.2]} 15. Be3 {[%clk 0:02:34.8]} 15...
Rfc8 {[%clk 0:03:00.6]} 16. Rfd1 {[%clk 0:02:26.3]} 16... f6 {[%clk 0:02:59.8]}
17. Rac1 {[%clk 0:02:24.6]} 17... Kf7 {[%clk 0:03:00.2]} 18. h4 {[%clk
0:02:24.4]} 18... Nf8 {[%clk 0:02:56.9]} 19. Rc3 {[%clk 0:02:21.4]} 19... Ke8
{[%clk 0:02:56.9]} 20. Rdc1 {[%clk 0:02:16.9]} 20... Kd7 {[%clk 0:02:57.5]} 21.
Kg2 {[%clk 0:02:15.9]} 21... g6 {[%clk 0:02:57.2]} 22. f3 {[%clk 0:02:09.6]}
22... Bd6 {[%clk 0:02:56.1]} 23. Nd3 {[%clk 0:02:03.1]} 23... Re8 {[%clk
0:02:54.7]} 24. Kf2 {[%clk 0:01:58.1]} 24... Bxg3+ {[%clk 0:02:41]} 25. Kxg3
{[%clk 0:01:57.8]} 25... Rxe3 {[%clk 0:02:41.6]} 26. Rxc6 {[%clk 0:01:53.8]}
26... Ne6 {[%clk 0:02:41.7]} 27. Nf4 {[%clk 0:01:42.7]} 27... Nxd4 {[%clk
0:02:41.5]} 28. Rc7+ {[%clk 0:01:34.5]} 28... Kd6 {[%clk 0:02:40.7]} 29. Rxh7
{[%clk 0:01:30.7]} 29... g5 {[%clk 0:02:33.7]} 30. hxg5 {[%clk 0:01:29.6]} 30...
fxg5 {[%clk 0:02:34.1]} 31. Rh6+ {[%clk 0:01:11.3]} 31... Ke5 {[%clk 0:02:34.2]}
32. Ng6+ {[%clk 0:00:44.7]} 32... Kf6 {[%clk 0:02:34.1]} 33. Rc7 {[%clk
0:00:42.1]} 33... Nf5+ {[%clk 0:02:32.5]} 34. Kf2 {[%clk 0:00:41]} 34... Nxh6
{[%clk 0:02:33]} 35. Kxe3 {[%clk 0:00:40.6]} 35... Nf5+ {[%clk 0:02:31.9]} 0-1

[Event "*** Titled Tuesday Blitz"]
[Site "Chess.com"]
[Date "2020.05.05"]
[Round "1"]
[White "WiktoriaPOL"]
[Black "blitzking1729"]
[Result "0-1"]
[WhiteElo "2021"]
[BlackElo "2484"]
[TimeControl "180+1"]
[EndTime "10:04:25 PDT"]
[Termination "blitzking1729 won by resignation"]

1. c4 {[%clk 0:03:00.9]} 1... e5 {[%clk 0:02:58.5]} 2. Nc3 {[%clk 0:03:00.3]}
2... d6 {[%clk 0:02:58.6]} 3. Nf3 {[%clk 0:02:58.6]} 3... f5 {[%clk 0:02:58.4]}
4. d4 {[%clk 0:02:57.2]} 4... e4 {[%clk 0:02:58.5]} 5. Nd2 {[%clk 0:02:56.5]}
5... Nf6 {[%clk 0:02:58.3]} 6. e3 {[%clk 0:02:50]} 6... c6 {[%clk 0:02:58.7]} 7.
f3 {[%clk 0:02:41.1]} 7... d5 {[%clk 0:02:56.9]} 8. cxd5 {[%clk 0:02:34.7]} 8...
cxd5 {[%clk 0:02:57.8]} 9. Qb3 {[%clk 0:02:33.5]} 9... Be7 {[%clk 0:02:53.5]}
10. Be2 {[%clk 0:02:25.2]} 10... Nc6 {[%clk 0:02:52.5]} 11. O-O {[%clk
0:02:22.4]} 11... O-O {[%clk 0:02:37.4]} 12. fxe4 {[%clk 0:02:16.8]} 12... fxe4
{[%clk 0:02:37.2]} 13. Ndxe4 {[%clk 0:02:12.3]} 13... Nxe4 {[%clk 0:02:36.4]}
14. Nxe4 {[%clk 0:02:11.6]} 14... Rxf1+ {[%clk 0:02:33.7]} 15. Bxf1 {[%clk
0:02:08.8]} 15... Na5 {[%clk 0:02:33.4]} 16. Qc2 {[%clk 0:01:44.8]} 16... dxe4
{[%clk 0:02:31.6]} 17. Qxe4 {[%clk 0:01:44.2]} 17... Bf6 {[%clk 0:02:19.3]} 18.
b4 {[%clk 0:01:38.5]} 18... Nc6 {[%clk 0:02:17.3]} 19. Bc4+ {[%clk 0:01:37.6]}
19... Kh8 {[%clk 0:02:16.7]} 20. Bd3 {[%clk 0:01:35.5]} 20... g6 {[%clk
0:02:15.7]} 21. a3 {[%clk 0:01:26.2]} 21... Bf5 {[%clk 0:02:11.8]} 22. Qf3
{[%clk 0:01:14.3]} 22... Nxd4 {[%clk 0:02:02.9]} 23. exd4 {[%clk 0:01:09]} 23...
Qxd4+ {[%clk 0:02:00.3]} 24. Kh1 {[%clk 0:01:07.4]} 24... Qxa1 {[%clk
0:01:57.4]} 0-1

[Event "*** Titled Tuesday Blitz"]
[Site "Chess.com"]
[Date "2020.05.05"]
[Round "1"]
[White "r31415"]
[Black "Evgeny81"]
[Result "1-0"]
[WhiteElo "2374"]
[BlackElo "2674"]
[TimeControl "180+1"]
[EndTime "10:04:32 PDT"]
[Termination "r31415 won by resignation"]

1. e4 {[%clk 0:03:00.9]} 1... e6 {[%clk 0:02:59.4]} 2. d4 {[%clk 0:02:59.6]}
2... d5 {[%clk 0:02:59.5]} 3. Nc3 {[%clk 0:03:00.5]} 3... Nf6 {[%clk 0:02:58.6]}
4. e5 {[%clk 0:03:00.8]} 4... Nfd7 {[%clk 0:02:58.2]} 5. f4 {[%clk 0:03:01.7]}
5... c5 {[%clk 0:02:58.2]} 6. Nf3 {[%clk 0:03:02.6]} 6... Nc6 {[%clk 0:02:58]}
7. Be3 {[%clk 0:03:03.1]} 7... Be7 {[%clk 0:02:58]} 8. dxc5 {[%clk 0:03:02.1]}
8... O-O {[%clk 0:02:56.3]} 9. Qd2 {[%clk 0:03:00.8]} 9... Nxc5 {[%clk
0:02:53.2]} 10. O-O-O {[%clk 0:02:53.6]} 10... a6 {[%clk 0:02:52.1]} 11. Kb1
{[%clk 0:02:52]} 11... b5 {[%clk 0:02:51.3]} 12. Bxc5 {[%clk 0:02:45.2]} 12...
Bxc5 {[%clk 0:02:50.3]} 13. Bd3 {[%clk 0:02:44.3]} 13... b4 {[%clk 0:02:39.9]}
14. Bxh7+ {[%clk 0:02:43]} 14... Kxh7 {[%clk 0:02:39]} 15. Ng5+ {[%clk
0:02:42.9]} 15... Kg8 {[%clk 0:02:18]} 16. Qd3 {[%clk 0:02:42.4]} 16... g6
{[%clk 0:01:52.2]} 17. Qh3 {[%clk 0:02:21.4]} 17... Qxg5 {[%clk 0:01:51.8]} 18.
fxg5 {[%clk 0:02:22]} 18... Nxe5 {[%clk 0:01:48.1]} 19. Ne2 {[%clk 0:02:05.7]}
19... Bd7 {[%clk 0:01:40]} 20. Nd4 {[%clk 0:02:02.3]} 20... Nc4 {[%clk
0:01:34.2]} 21. Qh4 {[%clk 0:01:38.6]} 21... a5 {[%clk 0:01:22.3]} 22. Rd3
{[%clk 0:01:37.4]} 22... Bxd4 {[%clk 0:01:11.4]} 23. Qxd4 {[%clk 0:01:34.5]}
23... Bc6 {[%clk 0:01:03.8]} 24. Qf6 {[%clk 0:01:33.7]} 1-0

[Event "*** Titled Tuesday Blitz"]
[Site "Chess.com"]
[Date "2020.05.05"]
[Round "1"]
[White "CarlssonLudvig"]
[Black "OparinGrigoriy"]
[Result "0-1"]
[WhiteElo "2458"]
[BlackElo "2934"]
[TimeControl "180+1"]
[EndTime "10:04:35 PDT"]
[Termination "OparinGrigoriy won by resignation"]

1. Nf3 {[%clk 0:02:59.7]} 1... Nf6 {[%clk 0:02:59.2]} 2. c4 {[%clk 0:02:59.3]}
2... e6 {[%clk 0:02:59.5]} 3. d4 {[%clk 0:02:58.7]} 3... d5 {[%clk 0:03:00.4]}
4. g3 {[%clk 0:02:58]} 4... Bb4+ {[%clk 0:03:00.1]} 5. Bd2 {[%clk 0:02:57.5]}
5... Be7 {[%clk 0:02:58.9]} 6. Bg2 {[%clk 0:02:57.5]} 6... O-O {[%clk
0:02:56.6]} 7. O-O {[%clk 0:02:57.5]} 7... c6 {[%clk 0:02:55.5]} 8. Qb3 {[%clk
0:02:57.4]} 8... Nbd7 {[%clk 0:02:54]} 9. Rc1 {[%clk 0:02:48.5]} 9... a5 {[%clk
0:02:54.4]} 10. Bf4 {[%clk 0:02:41.1]} 10... h6 {[%clk 0:02:50.8]} 11. Ne5
{[%clk 0:02:34.9]} 11... Re8 {[%clk 0:02:48.5]} 12. Na3 {[%clk 0:02:27.9]} 12...
Bf8 {[%clk 0:02:30.1]} 13. Qd3 {[%clk 0:02:20.3]} 13... Nxe5 {[%clk 0:02:26.5]}
14. Bxe5 {[%clk 0:02:20.1]} 14... Nd7 {[%clk 0:02:13]} 15. Bf4 {[%clk
0:02:18.7]} 15... e5 {[%clk 0:02:11.7]} 16. dxe5 {[%clk 0:02:14.2]} 16... Nxe5
{[%clk 0:02:12.6]} 17. Qd4 {[%clk 0:01:53.1]} 17... Nxc4 {[%clk 0:02:05.9]} 18.
Nxc4 {[%clk 0:01:51.6]} 18... dxc4 {[%clk 0:02:06.8]} 19. Qxd8 {[%clk
0:01:49.3]} 19... Rxd8 {[%clk 0:02:06.5]} 20. Rxc4 {[%clk 0:01:49.4]} 20... Be6
{[%clk 0:02:06.9]} 21. Rc2 {[%clk 0:01:48.4]} 21... a4 {[%clk 0:02:05.6]} 22. a3
{[%clk 0:01:41.4]} 22... Bb3 {[%clk 0:02:05.5]} 23. Rc3 {[%clk 0:01:39.6]} 23...
g5 {[%clk 0:02:03.5]} 24. Be3 {[%clk 0:01:36.7]} 24... Bg7 {[%clk 0:02:03.1]}
25. Bb6 {[%clk 0:01:15.8]} 25... Bxc3 {[%clk 0:01:49.1]} 26. Bxd8 {[%clk
0:01:15]} 26... Bxb2 {[%clk 0:01:49]} 27. Rb1 {[%clk 0:01:15]} 27... Rxd8 {[%clk
0:01:49.2]} 28. Rxb2 {[%clk 0:01:13.3]} 28... Rd1+ {[%clk 0:01:49.7]} 29. Bf1
{[%clk 0:01:13.5]} 29... Ra1 {[%clk 0:01:50.4]} 30. Kg2 {[%clk 0:01:12.5]} 30...
Rxa3 {[%clk 0:01:50.7]} 31. e3 {[%clk 0:01:12.6]} 31... Ra1 {[%clk 0:01:47.8]}
32. Bd3 {[%clk 0:01:09.6]} 32... b5 {[%clk 0:01:47.7]} 33. Be4 {[%clk
0:01:07.9]} 33... c5 {[%clk 0:01:47.7]} 34. Bc6 {[%clk 0:01:06.4]} 34... b4
{[%clk 0:01:47.8]} 0-1

[Event "*** Titled Tuesday Blitz"]
[Site "Chess.com"]
[Date "2020.05.05"]
[Round "1"]
[White "GuerrieroFromLevant"]
[Black "Rozum_Ivan"]
[Result "0-1"]
[WhiteElo "2377"]
[BlackElo "2727"]
[TimeControl "180+1"]
[EndTime "10:04:36 PDT"]
[Termination "Rozum_Ivan won by resignation"]

1. e4 {[%clk 0:03:00.9]} 1... d6 {[%clk 0:02:56.8]} 2. d4 {[%clk 0:03:00.5]}
2... Nf6 {[%clk 0:02:54.5]} 3. Nc3 {[%clk 0:03:00.4]} 3... e5 {[%clk 0:02:55.1]}
4. Nf3 {[%clk 0:02:59.4]} 4... Nbd7 {[%clk 0:02:54.9]} 5. Bc4 {[%clk 0:02:59.1]}
5... Be7 {[%clk 0:02:55]} 6. O-O {[%clk 0:02:55.9]} 6... O-O {[%clk 0:02:55.2]}
7. h3 {[%clk 0:02:55]} 7... c6 {[%clk 0:02:55.1]} 8. a4 {[%clk 0:02:54.6]} 8...
a5 {[%clk 0:02:54.8]} 9. Re1 {[%clk 0:02:54.3]} 9... Nb6 {[%clk 0:02:54.9]} 10.
Ba2 {[%clk 0:02:53.4]} 10... Nfd7 {[%clk 0:02:54.8]} 11. Be3 {[%clk 0:02:50.5]}
11... exd4 {[%clk 0:02:54.4]} 12. Bxd4 {[%clk 0:02:49.7]} 12... Nc5 {[%clk
0:02:54.6]} 13. Bxc5 {[%clk 0:02:29.3]} 13... dxc5 {[%clk 0:02:55.5]} 14. e5
{[%clk 0:02:29.3]} 14... Qxd1 {[%clk 0:02:35.5]} 15. Raxd1 {[%clk 0:02:30.2]}
15... Bf5 {[%clk 0:02:35.7]} 16. e6 {[%clk 0:02:22.9]} 16... Bxe6 {[%clk
0:01:45.1]} 17. Bxe6 {[%clk 0:02:08.2]} 17... fxe6 {[%clk 0:01:46]} 18. Rxe6
{[%clk 0:02:08.4]} 18... Bf6 {[%clk 0:01:39]} 19. Ne4 {[%clk 0:02:00.3]} 19...
Nxa4 {[%clk 0:01:38.2]} 20. b3 {[%clk 0:01:58.9]} 20... Nc3 {[%clk 0:01:32.9]}
21. Nxf6+ {[%clk 0:01:48.9]} 21... Rxf6 {[%clk 0:01:31.2]} 22. Rxf6 {[%clk
0:01:48.4]} 22... gxf6 {[%clk 0:01:32.1]} 23. Rd7 {[%clk 0:01:47.2]} 23... b5
{[%clk 0:01:29.6]} 24. Nh4 {[%clk 0:01:43.2]} 24... a4 {[%clk 0:01:24.5]} 25.
bxa4 {[%clk 0:01:41]} 25... bxa4 {[%clk 0:01:24.5]} 26. Nf5 {[%clk 0:01:41.2]}
26... a3 {[%clk 0:01:22.2]} 27. Nh6+ {[%clk 0:01:41.4]} 27... Kh8 {[%clk
0:01:19]} 28. Nf7+ {[%clk 0:01:39.3]} 28... Kg7 {[%clk 0:01:19.1]} 29. Nd6+
{[%clk 0:01:34.8]} 29... Kg8 {[%clk 0:01:16.4]} 0-1

[Event "*** Titled Tuesday Blitz"]
[Site "Chess.com"]
[Date "2020.05.05"]
[Round "1"]
[White "FM_VS99"]
[Black "GMartin_Petrov"]
[Result "0-1"]
[WhiteElo "2275"]
[BlackElo "2602"]
[TimeControl "180+1"]
[EndTime "10:04:44 PDT"]
[Termination "GMartin_Petrov won by resignation"]

1. c4 {[%clk 0:02:57.7]} 1... Nf6 {[%clk 0:02:57.3]} 2. g3 {[%clk 0:02:58.6]}
2... c5 {[%clk 0:02:56.9]} 3. Bg2 {[%clk 0:02:59.5]} 3... Nc6 {[%clk 0:02:55.9]}
4. Nf3 {[%clk 0:03:00.2]} 4... d5 {[%clk 0:02:55.3]} 5. cxd5 {[%clk 0:02:59.2]}
5... Nxd5 {[%clk 0:02:56.2]} 6. d4 {[%clk 0:02:58.4]} 6... cxd4 {[%clk
0:02:49.8]} 7. Nxd4 {[%clk 0:02:58.1]} 7... Ndb4 {[%clk 0:02:48.3]} 8. Nxc6
{[%clk 0:02:52.5]} 8... Qxd1+ {[%clk 0:02:45.7]} 9. Kxd1 {[%clk 0:02:53.4]} 9...
Nxc6 {[%clk 0:02:44.3]} 10. Bxc6+ {[%clk 0:02:51.1]} 10... bxc6 {[%clk
0:02:43.9]} 11. Nc3 {[%clk 0:02:52]} 11... g6 {[%clk 0:02:36.4]} 12. Kc2 {[%clk
0:02:51.4]} 12... Bg7 {[%clk 0:02:35.6]} 13. b3 {[%clk 0:02:49]} 13... Bf5+
{[%clk 0:02:34.1]} 14. Kb2 {[%clk 0:02:45.7]} 14... O-O {[%clk 0:02:30.1]} 15.
Be3 {[%clk 0:02:45.5]} 15... a5 {[%clk 0:02:27.2]} 16. Rhd1 {[%clk 0:02:42.6]}
16... a4 {[%clk 0:02:26.7]} 17. Bd4 {[%clk 0:02:42.7]} 17... a3+ {[%clk
0:02:21.3]} 18. Kc1 {[%clk 0:02:41.8]} 18... e5 {[%clk 0:02:17.2]} 19. Bc5
{[%clk 0:02:40.3]} 19... Rfe8 {[%clk 0:01:43.4]} 20. e4 {[%clk 0:02:38.1]} 20...
Bg4 {[%clk 0:01:40.1]} 21. Rd3 {[%clk 0:02:28.3]} 21... f5 {[%clk 0:01:34.5]}
22. f3 {[%clk 0:02:21.3]} 22... fxe4 {[%clk 0:01:31.6]} 23. Nxe4 {[%clk
0:02:22.2]} 23... Bf5 {[%clk 0:01:24.3]} 24. Kc2 {[%clk 0:02:21.6]} 24... Bf8
{[%clk 0:01:20.6]} 25. Bxf8 {[%clk 0:01:57.1]} 25... Rxf8 {[%clk 0:01:20.3]} 26.
Re1 {[%clk 0:01:55.5]} 26... Ra5 {[%clk 0:01:12.6]} 27. b4 {[%clk 0:01:53.8]}
27... Rd5 {[%clk 0:01:12]} 28. Rc3 {[%clk 0:01:46.6]} 28... Rd4 {[%clk
0:01:10.6]} 29. Kb3 {[%clk 0:01:46.7]} 29... Rb8 {[%clk 0:01:07.2]} 30. Rc4
{[%clk 0:01:43.7]} 30... Be6 {[%clk 0:01:05.7]} 31. Nd6 {[%clk 0:01:40.6]} 31...
Rxd6 {[%clk 0:01:04]} 0-1

[Event "*** Titled Tuesday Blitz"]
[Site "Chess.com"]
[Date "2020.05.05"]
[Round "1"]
[White "calin_dragomirescu"]
[Black "DrVelja"]
[Result "0-1"]
[WhiteElo "2312"]
[BlackElo "2638"]
[TimeControl "180+1"]
[EndTime "10:04:45 PDT"]
[Termination "DrVelja won by resignation"]

1. Nf3 {[%clk 0:03:00.9]} 1... Nf6 {[%clk 0:02:41.5]} 2. c4 {[%clk 0:03:00.6]}
2... g6 {[%clk 0:02:40.4]} 3. Nc3 {[%clk 0:03:00.1]} 3... Bg7 {[%clk 0:02:41.3]}
4. e4 {[%clk 0:03:00.1]} 4... e5 {[%clk 0:02:40.1]} 5. d4 {[%clk 0:02:47.6]}
5... exd4 {[%clk 0:02:37.9]} 6. Nxd4 {[%clk 0:02:46.8]} 6... O-O {[%clk
0:02:38.2]} 7. Be3 {[%clk 0:02:46.3]} 7... Re8 {[%clk 0:02:35.2]} 8. f3 {[%clk
0:02:39.9]} 8... c6 {[%clk 0:02:33.8]} 9. Be2 {[%clk 0:02:35.2]} 9... d5 {[%clk
0:02:31.3]} 10. cxd5 {[%clk 0:02:35.3]} 10... cxd5 {[%clk 0:02:31.2]} 11. O-O
{[%clk 0:02:28.2]} 11... dxe4 {[%clk 0:02:30.1]} 12. Bb5 {[%clk 0:02:21]} 12...
Bd7 {[%clk 0:02:21.5]} 13. fxe4 {[%clk 0:02:16.4]} 13... Bxb5 {[%clk 0:01:59.8]}
14. Ndxb5 {[%clk 0:02:12.5]} 14... Nbd7 {[%clk 0:01:53.6]} 15. Nd6 {[%clk
0:02:00.5]} 15... Re6 {[%clk 0:01:50.8]} 16. Kh1 {[%clk 0:01:53.5]} 16... Qe7
{[%clk 0:01:34.4]} 17. Nxb7 {[%clk 0:01:50]} 17... Rb8 {[%clk 0:01:34.6]} 18.
Na5 {[%clk 0:01:47.3]} 18... Rxb2 {[%clk 0:01:32.1]} 19. Nb3 {[%clk 0:01:46.2]}
19... Nxe4 {[%clk 0:01:22.4]} 20. Nxe4 {[%clk 0:01:42.2]} 20... Rxe4 {[%clk
0:01:22.5]} 21. Bg1 {[%clk 0:01:32.5]} 21... Ree2 {[%clk 0:01:17.6]} 22. Re1
{[%clk 0:01:25.2]} 22... Qe4 {[%clk 0:01:17.1]} 23. Rxe2 {[%clk 0:01:23.5]}
23... Rxe2 {[%clk 0:01:18]} 24. Qf1 {[%clk 0:01:23.5]} 24... Bxa1 {[%clk
0:01:18.4]} 25. Nxa1 {[%clk 0:01:23.1]} 25... Re1 {[%clk 0:01:18]} 26. Qb5
{[%clk 0:01:19.6]} 26... Rxa1 {[%clk 0:01:13.5]} 27. Qxd7 {[%clk 0:01:17.7]}
27... Rxg1+ {[%clk 0:01:13.8]} 0-1

[Event "*** Titled Tuesday Blitz"]
[Site "Chess.com"]
[Date "2020.05.05"]
[Round "1"]
[White "Micki-taryan"]
[Black "chessplayer9919"]
[Result "1-0"]
[WhiteElo "3078"]
[BlackElo "2470"]
[TimeControl "180+1"]
[EndTime "10:04:47 PDT"]
[Termination "Micki-taryan won by resignation"]

1. d4 {[%clk 0:02:59]} 1... Nf6 {[%clk 0:02:57.6]} 2. Nf3 {[%clk 0:02:58.7]}
2... e6 {[%clk 0:02:57.1]} 3. c4 {[%clk 0:02:58.7]} 3... b6 {[%clk 0:02:56.8]}
4. Nc3 {[%clk 0:02:58.6]} 4... Bb7 {[%clk 0:02:54.6]} 5. Bg5 {[%clk 0:02:59]}
5... Bb4 {[%clk 0:02:48.9]} 6. e3 {[%clk 0:02:59]} 6... h6 {[%clk 0:02:46]} 7.
Bh4 {[%clk 0:02:59.2]} 7... g5 {[%clk 0:02:42]} 8. Bg3 {[%clk 0:02:59.5]} 8...
Ne4 {[%clk 0:02:42.2]} 9. Nd2 {[%clk 0:02:58.7]} 9... h5 {[%clk 0:02:13.8]} 10.
Ndxe4 {[%clk 0:02:54.1]} 10... Bxe4 {[%clk 0:02:13.7]} 11. h4 {[%clk 0:02:52.8]}
11... g4 {[%clk 0:02:08.7]} 12. Qb3 {[%clk 0:02:50.4]} 12... c5 {[%clk
0:01:35.2]} 13. a3 {[%clk 0:02:46.3]} 13... Ba5 {[%clk 0:01:34.7]} 14. O-O-O
{[%clk 0:02:44.5]} 14... Bc6 {[%clk 0:01:01]} 15. d5 {[%clk 0:02:41.5]} 15...
Bb7 {[%clk 0:00:54.4]} 16. Nb5 {[%clk 0:02:40.7]} 16... O-O {[%clk 0:00:52.8]}
17. Nc7 {[%clk 0:02:30.9]} 17... exd5 {[%clk 0:00:44.8]} 18. Nxa8 {[%clk
0:02:30.1]} 18... Bxa8 {[%clk 0:00:40.4]} 19. cxd5 {[%clk 0:02:30]} 19... d6
{[%clk 0:00:40.8]} 20. Bd3 {[%clk 0:02:26.3]} 20... Nd7 {[%clk 0:00:38.8]} 21.
Bxd6 {[%clk 0:02:23.7]} 21... Re8 {[%clk 0:00:38.2]} 22. Bf4 {[%clk 0:02:19.6]}
22... Nf6 {[%clk 0:00:34.2]} 23. Bb5 {[%clk 0:02:18.2]} 23... Re4 {[%clk
0:00:23.6]} 24. Bc6 {[%clk 0:02:17.6]} 24... Bxc6 {[%clk 0:00:15.9]} 25. dxc6
{[%clk 0:02:18.5]} 25... Qc8 {[%clk 0:00:16.6]} 26. Rd6 {[%clk 0:02:16.1]} 26...
Ne8 {[%clk 0:00:15.1]} 27. Rg6+ {[%clk 0:02:12.2]} 1-0

[Event "*** Titled Tuesday Blitz"]
[Site "Chess.com"]
[Date "2020.05.05"]
[Round "1"]
[White "doons21"]
[Black "ajkom197"]
[Result "1-0"]
[WhiteElo "2615"]
[BlackElo "2293"]
[TimeControl "180+1"]
[EndTime "10:04:52 PDT"]
[Termination "doons21 won by resignation"]

1. e4 {[%clk 0:02:58.1]} 1... c6 {[%clk 0:02:57.4]} 2. d4 {[%clk 0:02:57.4]}
2... d5 {[%clk 0:02:57.4]} 3. f3 {[%clk 0:02:58.3]} 3... e6 {[%clk 0:02:56.5]}
4. Nc3 {[%clk 0:02:57.9]} 4... Nf6 {[%clk 0:02:56.3]} 5. Bf4 {[%clk 0:02:44.6]}
5... Bb4 {[%clk 0:02:48.1]} 6. Qd3 {[%clk 0:02:44.8]} 6... b6 {[%clk 0:02:43.9]}
7. Ne2 {[%clk 0:02:44.4]} 7... Ba6 {[%clk 0:02:42.4]} 8. Qe3 {[%clk 0:02:44]}
8... Nbd7 {[%clk 0:02:40.9]} 9. e5 {[%clk 0:02:39.6]} 9... Ng8 {[%clk 0:02:40]}
10. Bg5 {[%clk 0:02:27.8]} 10... Ne7 {[%clk 0:02:37.6]} 11. a3 {[%clk
0:02:19.9]} 11... Bxc3+ {[%clk 0:02:36.8]} 12. Nxc3 {[%clk 0:02:20.8]} 12...
Bxf1 {[%clk 0:02:36.4]} 13. Rxf1 {[%clk 0:02:19.6]} 13... h6 {[%clk 0:02:36.9]}
14. Bxe7 {[%clk 0:02:15.5]} 14... Qxe7 {[%clk 0:02:36.9]} 15. O-O-O {[%clk
0:02:14.8]} 15... b5 {[%clk 0:02:32.5]} 16. f4 {[%clk 0:02:14.5]} 16... g6
{[%clk 0:02:32.3]} 17. g4 {[%clk 0:02:13.7]} 17... a5 {[%clk 0:02:23.6]} 18. f5
{[%clk 0:02:13.7]} 18... b4 {[%clk 0:02:23.5]} 19. Nb1 {[%clk 0:02:13.4]} 19...
Qg5 {[%clk 0:02:13]} 20. Rf4 {[%clk 0:02:08.4]} 20... c5 {[%clk 0:01:57.3]} 21.
dxc5 {[%clk 0:01:47.9]} 21... Nxc5 {[%clk 0:01:55.3]} 22. h4 {[%clk 0:01:47.1]}
22... Qe7 {[%clk 0:01:42.1]} 23. fxg6 {[%clk 0:01:29.8]} 23... fxg6 {[%clk
0:01:41.3]} 24. Rdf1 {[%clk 0:01:29.5]} 24... Rc8 {[%clk 0:01:40.8]} 25. axb4
{[%clk 0:01:24.6]} 25... axb4 {[%clk 0:01:40.5]} 26. Nd2 {[%clk 0:01:13.8]}
26... b3 {[%clk 0:01:36.3]} 27. Nxb3 {[%clk 0:01:07.8]} 27... Nxb3+ {[%clk
0:01:31.9]} 28. Qxb3 {[%clk 0:01:08.7]} 1-0

[Event "*** Titled Tuesday Blitz"]
[Site "Chess.com"]
[Date "2020.05.05"]
[Round "1"]
[White "vinniethepooh"]
[Black "Manukyan_Artak"]
[Result "1-0"]
[WhiteElo "2677"]
[BlackElo "2344"]
[TimeControl "180+1"]
[EndTime "10:04:53 PDT"]
[Termination "vinniethepooh won by resignation"]

1. d4 {[%clk 0:03:00.9]} 1... c6 {[%clk 0:03:00.2]} 2. c4 {[%clk 0:02:58.9]}
2... d5 {[%clk 0:03:01.1]} 3. Nc3 {[%clk 0:02:59.3]} 3... dxc4 {[%clk 0:03:01]}
4. e3 {[%clk 0:02:56.6]} 4... e5 {[%clk 0:02:58.1]} 5. Bxc4 {[%clk 0:02:49.2]}
5... exd4 {[%clk 0:02:57.8]} 6. exd4 {[%clk 0:02:50.1]} 6... Nf6 {[%clk
0:02:57.8]} 7. Nf3 {[%clk 0:02:45.9]} 7... Be7 {[%clk 0:02:57]} 8. O-O {[%clk
0:02:46.1]} 8... O-O {[%clk 0:02:56.3]} 9. h3 {[%clk 0:02:46.6]} 9... Nbd7
{[%clk 0:02:54.9]} 10. Bf4 {[%clk 0:02:35.4]} 10... Nb6 {[%clk 0:02:54.8]} 11.
Bb3 {[%clk 0:02:28.2]} 11... Nfd5 {[%clk 0:02:48.5]} 12. Bh2 {[%clk 0:02:23.3]}
12... Be6 {[%clk 0:02:45.7]} 13. Re1 {[%clk 0:02:20.7]} 13... Nxc3 {[%clk
0:02:45.1]} 14. bxc3 {[%clk 0:02:20.2]} 14... Bxb3 {[%clk 0:02:45]} 15. Qxb3
{[%clk 0:02:06.4]} 15... Bf6 {[%clk 0:02:45.9]} 16. c4 {[%clk 0:01:53.8]} 16...
Bxd4 {[%clk 0:02:34.6]} 17. Rad1 {[%clk 0:01:39.6]} 17... c5 {[%clk 0:02:34.7]}
18. Nxd4 {[%clk 0:01:26.1]} 18... cxd4 {[%clk 0:02:34.3]} 19. c5 {[%clk
0:01:27]} 19... Nd7 {[%clk 0:02:11.8]} 20. Rxd4 {[%clk 0:01:19]} 20... Qc8
{[%clk 0:02:10.3]} 21. Bd6 {[%clk 0:01:14.7]} 21... Rd8 {[%clk 0:02:05.3]} 22.
Rf4 {[%clk 0:00:49.6]} 22... Nf6 {[%clk 0:01:59.1]} 23. Be7 {[%clk 0:00:43.8]}
23... Re8 {[%clk 0:01:56.5]} 24. Rxf6 {[%clk 0:00:42.7]} 24... gxf6 {[%clk
0:01:38.1]} 25. Qg3+ {[%clk 0:00:41.1]} 1-0